bitfinex/quotes_SOLUSD_20260113
["timestamp","ask_amount","ask_price","bid_price","bid_amount"]
[1768296368591,27.29676358,142.47,142.43,0.71537693]
[1768296368794,25.2787351,142.47,142.42,0.71537693]
[1768296370404,25.2787351,142.47,142.42,2.73340541]
[1768296371387,7.73118123,142.47,142.42,2.73340541]
[1768296373606,9.74920971,142.47,142.42,0.71537693]
[1768296373912,0.69712462,142.46,142.41,0.69292425]
[1768296374411,0.69712462,142.46,142.42,0.69292425]
[1768296375409,7.71713164,142.45,142.4,2.71095273]
[1768296375917,7.71713164,142.45,142.41,0.69292425]
[1768296379022,0.69712462,142.44,142.41,0.69292425]
[1768296379316,7.02000702,142.45,142.41,0.69292425]
[1768296380620,7.01902154,142.47,142.42,2.01802848]
[1768296380924,7.01902154,142.47,142.41,7.71471348]
[1768296381218,0.69712462,142.46,142.41,2.71095273]
[1768296382004,7.71713164,142.45,142.41,2.71095273]
[1768296382204,7.68713164,142.45,142.41,2.71095273]
[1768296382503,7.68713164,142.45,142.41,0.69292425]
[1768296382996,0.69712462,142.45,142.41,7.71489576]
[1768296383222,7.01969138,142.46,142.42,0.69292425]
[1768296383399,7.716816,142.46,142.42,0.69292425]
[1768296384824,7.01969138,142.46,142.42,0.69292425]
[1768296385831,6.98969138,142.46,142.42,0.69292425]
[1768296386501,6.95969138,142.46,142.42,0.69292425]
[1768296386925,7.656816,142.46,142.42,0.69292425]
[1768296389033,7.71722807,142.45,142.41,2.01802848]
[1768296390227,7.71722807,142.45,142.4,7.71536781]
[1768296390432,0.69712462,142.44,142.41,2.71095273]
[1768296391131,0.69712462,142.44,142.41,0.69292425]
[1768296392321,0.69712462,142.44,142.41,2.71095273]
[1768296393013,0.69712462,142.44,142.41,2.01802848]
[1768296393207,7.71663886,142.46,142.41,2.71095273]
[1768296393408,7.71663886,142.46,142.42,0.69292425]
[1768296393837,9.73466734,142.46,142.42,0.69292425]
[1768296394038,7.01951424,142.46,142.42,0.69292425]
[1768296394734,7.71676009,142.46,142.42,0.69292425]
[1768296398642,7.71676009,142.46,142.42,2.71095273]
[1768296399841,7.71676009,142.46,142.42,0.69292425]
[1768296400841,0.69724585,142.45,142.41,2.01802848]
[1768296401942,0.69724585,142.45,142.42,0.71650082]
[1768296404349,7.7173047,142.45,142.42,0.71650082]
[1768296405540,7.7173047,142.45,142.41,10.17773539]
[1768296405757,7.7173047,142.45,142.41,10.89423621]
[1768296406954,0.69724585,142.45,142.41,10.89423621]
[1768296407154,0.69724585,142.45,142.42,3.87236848]
[1768296407648,0.66724585,142.45,142.42,3.87236848]
[1768296407953,0.63724585,142.45,142.42,3.87236848]
[1768296408348,7.65749952,142.45,142.42,3.87236848]
[1768296408556,0.63724585,142.45,142.42,3.87236848]
[1768296408853,7.65740203,142.45,142.42,3.87236848]
[1768296411452,7.65740203,142.45,142.41,7.02191943]
[1768296411453,7.65740203,142.45,142.41,7.73842025]
[1768296411654,7.65740203,142.45,142.42,3.15586766]
[1768296412833,7.65740203,142.45,142.41,7.73842025]
[1768296413034,7.65740203,142.45,142.42,3.15586766]
[1768296413656,0.63724585,142.45,142.42,3.15586766]
[1768296414158,0.63724585,142.45,142.41,10.89428791]
[1768296414671,0.60724585,142.45,142.41,10.89428791]
[1768296415856,7.62726279,142.45,142.41,3.87236848]
[1768296416159,7.62726279,142.45,142.41,0.71650082]
[1768296416457,7.62726279,142.45,142.41,10.89430731]
[1768296416760,7.62726279,142.45,142.41,3.87236848]
[1768296416953,0.69724585,142.44,142.41,3.87236848]
[1768296417451,0.66724585,142.44,142.41,3.87236848]
[1768296418258,0.66724585,142.44,142.41,0.71650082]
[1768296418436,0.66724585,142.44,142.4,0.71650082]
[1768296418758,0.66724585,142.44,142.4,3.87236848]
[1768296419464,7.6878731,142.44,142.4,3.87236848]
[1768296420441,7.6878731,142.44,142.4,10.89482839]
[1768296421055,0.66724585,142.44,142.41,3.15586766]
[1768296421363,7.65780234,142.44,142.41,3.15586766]
[1768296421957,0.63724585,142.44,142.41,3.15586766]
[1768296424072,7.65778095,142.44,142.41,3.15586766]
[1768296424463,7.65778095,142.44,142.4,6.5083409]
[1768296424652,7.65778095,142.44,142.4,9.66420856]
[1768296425169,7.65778095,142.44,142.4,3.87236848]
[1768296425371,0.71436796,142.43,142.4,0.71650082]
[1768296425571,0.68436794,142.43,142.4,3.87236848]
[1768296425872,0.68436794,142.43,142.39,19.30936817]
[1768296426082,0.68436794,142.43,142.36,15.90721949]
[1768296426083,3.15586766,142.42,142.36,0.69752809]
[1768296426378,3.15586766,142.42,142.36,16.67339575]
[1768296427572,0.71436796,142.41,142.37,0.69752809]
[1768296429457,0.71436796,142.4,142.36,15.97586766]
[1768296429703,0.71436796,142.4,142.36,16.67339575]
[1768296431146,0.71436796,142.4,142.36,15.97586766]
[1768296431341,0.71436796,142.4,142.36,12.82]
[1768296431661,0.71436796,142.4,142.36,13.51752809]
[1768296431662,7.73686715,142.4,142.36,13.51752809]
[1768296431865,0.71436796,142.41,142.38,3.15586766]
[1768296432067,0.71436796,142.41,142.36,20.54185261]
[1768296432370,0.71436796,142.41,142.37,3.15586766]
[1768296432754,0.71436796,142.41,142.36,20.54185261]
[1768296432948,0.71436796,142.41,142.37,3.15586766]
[1768296433271,0.71436796,142.4,142.36,13.51752809]
[1768296433473,0.71436796,142.4,142.36,16.67339575]
[1768296433653,0.71436796,142.4,142.36,13.51752809]
[1768296433950,0.71436796,142.4,142.36,12.82]
[1768296434154,0.71436796,142.39,142.36,12.82]
[1768296434781,0.66412045,142.38,142.35,2.67123978]
[1768296434970,7.68807212,142.37,142.35,2.67123978]
[1768296435169,7.65807212,142.37,142.35,2.67123978]
[1768296435468,0.66412045,142.37,142.35,2.67123978]
[1768296445064,0.66412045,142.37,142.35,1.27725025]
[1768296445065,0.48203887,142.36,142.35,1.27725025]
[1768296445265,3.60790653,142.36,142.35,1.27725025]
[1768296446279,10.18031272,142.36,142.32,0.68975932]
[1768296446459,10.18031272,142.36,142.31,10.87212243]
[1768296447088,10.18031272,142.36,142.31,7.71625477]
[1768296447260,0.35203887,142.35,142.31,7.71625477]
[1768296448263,0.35203887,142.35,142.31,10.87212243]
[1768296449667,0.34950848,142.33,142.3,0.2]
[1768296450264,3.50537614,142.33,142.3,0.2]
[1768296453706,7.12794387,142.32,142.3,0.2]
[1768296453880,10.28381153,142.32,142.3,0.2]
[1768296454189,0.35203887,142.33,142.3,0.2]
[1768296454396,0.25203887,142.32,142.3,0.1]
[1768296454594,3.25486766,142.31,142.27,0.88975932]
[1768296455393,3.15586766,142.3,142.27,0.88975932]
[1768296456566,0.099,142.31,142.27,7.91845013]
[1768296456770,12.97203887,142.33,142.28,0.71358233]
[1768296456973,3.25486766,142.32,142.28,0.71358233]
[1768296459168,3.25486766,142.32,142.28,7.74184965]
[1768296459569,0.099,142.32,142.28,7.74184965]
[1768296459881,3.25486766,142.32,142.28,7.74184965]
[1768296460595,10.28130659,142.32,142.28,7.74184965]
[1768296461694,3.15586766,142.31,142.28,0.71358233]
[1768296462495,3.30737614,142.31,142.27,7.22885374]
[1768296462673,3.30737614,142.31,142.27,7.94243607]
[1768296463376,0.09952508,142.3,142.27,7.94243607]
[1768296463992,3.15586766,142.31,142.27,7.94243607]
[1768296465280,2.02447927,142.31,142.27,7.94243607]
[1768296465800,2.02447927,142.3,142.27,0.91358233]
[1768296466591,2.02447927,142.31,142.27,7.94216612]
[1768296466791,2.12347927,142.31,142.27,7.94216612]
[1768296467388,2.12347927,142.33,142.28,2.7380616]
[1768296468002,0.15150848,142.32,142.28,2.7380616]
[1768296469196,2.17651814,142.33,142.29,0.71358233]
[1768296470712,9.20248077,142.33,142.29,0.71358233]
[1768296472014,9.20248077,142.33,142.29,7.74147814]
[1768296472314,7.1780015,142.33,142.29,7.74147814]
[1768296472510,0.15203887,142.33,142.3,0.71358233]
[1768296472695,0.15203887,142.33,142.29,9.76595741]
[1768296472891,0.05203887,142.32,142.29,8.95237508]
[1768296473098,0.05203887,142.32,142.29,6.87585694]
[1768296474220,0.05203887,142.32,142.28,7.02839471]
[1768296474399,0.05203887,142.32,142.28,9.05287398]
[1768296474892,0.05203887,142.32,142.29,0.71358233]
[1768296475097,9.05040691,142.33,142.29,0.71358233]
[1768296475494,9.05040691,142.33,142.29,9.76591534]
[1768296475725,2.02447927,142.33,142.29,9.76591534]
[1768296476414,2.02447927,142.35,142.31,0.71358233]
[1768296476620,2.02447927,142.4,142.34,0.71358233]
[1768296476828,7.02148574,142.42,142.34,0.71358233]
[1768296477116,9.04596501,142.42,142.37,2.7380616]
[1768296477323,9.04596501,142.42,142.37,0.71358233]
[1768296477494,9.04596501,142.42,142.38,2.02447927]
[1768296477694,19.84148574,142.42,142.38,2.02447927]
[1768296477911,9.04596501,142.42,142.38,2.02447927]
[1768296478102,21.86596501,142.42,142.38,2.02447927]
[1768296478307,2.02447927,142.41,142.37,2.7380616]
[1768296478621,19.84148574,142.42,142.38,2.02447927]
[1768296478802,9.04596501,142.42,142.37,2.7380616]
[1768296480318,2.02447927,142.41,142.37,2.7380616]
[1768296480517,2.02447927,142.38,142.31,7.02658722]
[1768296480719,2.02447927,142.36,142.32,2.02447927]
[1768296481423,12.82,142.39,142.35,2.02447927]
[1768296481612,12.82,142.39,142.36,2.02447927]
[1768296482811,12.82,142.39,142.36,2.7380616]
[1768296483020,12.82,142.39,142.37,2.02447927]
[1768296483522,12.82,142.39,142.36,2.02447927]
[1768296483717,7.02252042,142.4,142.36,2.02447927]
[1768296483912,21.86661576,142.41,142.36,2.02447927]
[1768296485310,2.02447927,142.4,142.35,0.71358233]
[1768296485507,2.02447927,142.39,142.34,2.02447927]
[1768296486029,12.82,142.38,142.34,2.02447927]
[1768296486395,14.84447927,142.38,142.33,2.68446838]
[1768296486627,14.84447927,142.38,142.34,0.65998911]
[1768296486922,19.84380978,142.38,142.34,2.68446838]
[1768296488228,12.82,142.38,142.35,2.02447927]
[1768296488420,7.02310517,142.39,142.35,2.02447927]
[1768296488628,21.86758444,142.39,142.35,2.02447927]
[1768296489421,21.86758444,142.39,142.34,9.70989199]
[1768296490232,2.02447927,142.36,142.31,0.65998911]
[1768296490409,2.02447927,142.33,142.3,0.65998911]
[1768296490606,2.02447927,142.33,142.29,0.65998911]
[1768296490836,2.02447927,142.34,142.29,2.68446838]
[1768296491628,2.02447927,142.34,142.3,7.02727263]
[1768296492529,2.02447927,142.34,142.3,7.68726174]
[1768296492732,2.02447927,142.34,142.31,0.65998911]
[1768296493227,9.05004272,142.34,142.3,0.65998911]
[1768296495025,2.02447927,142.33,142.3,0.65998911]
[1768296495632,9.05042716,142.33,142.3,0.65998911]
[1768296496716,2.02447927,142.32,142.3,0.65998911]
[1768296497609,2.02447927,142.31,142.28,0.7128258]
[1768296497832,14.84447927,142.32,142.29,0.7128258]
[1768296498336,21.8709008,142.32,142.29,0.7128258]
[1768296499030,9.0509008,142.32,142.29,0.7128258]
[1768296499239,21.8709008,142.32,142.29,0.7128258]
[1768296499536,2.02447927,142.31,142.29,0.7128258]
[1768296500132,9.05145632,142.31,142.28,0.7128258]
[1768296500335,12.82,142.35,142.31,0.7128258]
[1768296500538,2.02447927,142.36,142.31,0.7128258]
[1768296500837,2.02447927,142.35,142.31,0.7128258]
[1768296501508,7.02506114,142.35,142.31,0.7128258]
[1768296501710,2.02447927,142.34,142.31,0.7128258]
[1768296502327,7.02506114,142.35,142.31,0.7128258]
[1768296502530,9.04954041,142.35,142.31,0.7128258]
[1768296502726,7.02453419,142.36,142.32,0.7128258]
[1768296502928,2.02447927,142.36,142.32,0.7128258]
[1768296503222,14.84447927,142.36,142.32,0.7128258]
[1768296503421,21.86894664,142.36,142.32,0.7128258]
[1768296503941,2.02447927,142.35,142.32,0.7128258]
[1768296505742,2.02447927,142.34,142.3,7.74009438]
[1768296506045,7.02504404,142.35,142.3,0.7128258]
[1768296506046,2.02447927,142.32,142.3,0.7128258]
[1768296506228,2.02447927,142.33,142.3,0.7128258]
[1768296506943,21.86952331,142.35,142.31,0.7128258]
[1768296507238,2.02447927,142.34,142.31,0.7128258]
[1768296507616,2.02447927,142.34,142.31,7.73971749]
[1768296508937,2.02447927,142.34,142.31,0.7128258]
[1768296510148,12.82,142.35,142.31,7.73962395]
[1768296510333,14.84447927,142.35,142.32,0.7128258]
[1768296510536,2.02447927,142.34,142.32,0.7128258]
[1768296510753,21.86945291,142.35,142.32,0.7128258]
[1768296510927,2.02447927,142.34,142.32,0.7128258]
[1768296512848,37.13901749,142.4,142.32,0.7128258]
[1768296513030,37.13901749,142.4,142.34,0.7128258]
[1768296513031,2.02447927,142.38,142.34,0.7128258]
[1768296513228,14.84447927,142.39,142.35,0.7128258]
[1768296514046,14.84447927,142.39,142.35,2.73730507]
[1768296514443,7.02345835,142.38,142.35,2.73730507]
[1768296515252,7.02345835,142.38,142.35,0.7128258]
[1768296515827,9.04793762,142.38,142.35,0.7128258]
[1768296516257,7.02345835,142.38,142.35,0.7128258]
[1768296516423,19.84305088,142.39,142.35,0.7128258]
[1768296516746,12.82,142.4,142.38,0.66155358]
[1768296517652,12.82,142.4,142.36,2.02447927]
[1768296517845,12.82,142.4,142.37,0.66155358]
[1768296518149,19.84266661,142.4,142.37,0.66155358]
[1768296519246,7.02266661,142.4,142.37,0.66155358]
[1768296519454,7.02266661,142.4,142.36,2.02447927]
[1768296519763,7.02266661,142.4,142.37,2.02447927]
[1768296520057,7.02266661,142.4,142.36,2.02447927]
[1768296520242,7.02266661,142.4,142.36,2.68603285]
[1768296520638,7.02266661,142.4,142.37,0.66155358]
[1768296522956,9.04714588,142.4,142.37,0.66155358]
[1768296523533,21.86714588,142.4,142.37,0.66155358]
[1768296524167,9.04714588,142.4,142.37,0.66155358]
[1768296524343,9.04714588,142.4,142.35,2.02447927]
[1768296524344,0.65592804,142.37,142.3,5.8011896]
[1768296524536,2.02447927,142.34,142.29,9.05218173]
[1768296524731,2.02447927,142.33,142.29,9.05218173]
[1768296525060,2.02447927,142.34,142.29,7.02780189]
[1768296525245,2.02447927,142.34,142.29,9.05228116]
[1768296525447,2.02447927,142.34,142.29,7.02780189]
[1768296525650,2.02447927,142.34,142.29,9.05228116]
[1768296525848,2.02447927,142.34,142.29,7.02780189]
[1768296526159,2.02447927,142.33,142.29,7.02780189]
[1768296526459,2.02447927,142.33,142.3,0.66155358]
[1768296526845,2.02447927,142.32,142.3,0.66155358]
[1768296527039,2.02447927,142.31,142.27,0.86155358]
[1768296527239,2.02447927,142.29,142.27,0.86155358]
[1768296527461,3.16386908,142.29,142.27,0.86155358]
[1768296527657,3.16386908,142.31,142.28,0.66155358]
[1768296528345,10.19081221,142.31,142.28,0.66155358]
[1768296529359,3.16386908,142.31,142.28,0.66155358]
[1768296531967,10.1904651,142.32,142.28,0.66155358]
[1768296534164,7.02659602,142.32,142.28,0.66155358]
[1768296534366,10.1904651,142.32,142.28,0.66155358]
[1768296535666,7.02659602,142.32,142.28,0.66155358]
[1768296536143,19.84595567,142.33,142.29,0.66155358]
[1768296536344,23.00982475,142.33,142.29,0.66155358]
[1768296536773,7.02595567,142.33,142.3,0.66155358]
[1768296536953,10.18950273,142.34,142.3,0.66155358]
[1768296537667,7.12401535,142.35,142.31,0.66155358]
[1768296537972,10.28788443,142.35,142.31,0.66155358]
[1768296538667,7.12242939,142.39,142.34,0.66155358]
[1768296538861,10.28629847,142.39,142.34,0.66155358]
[1768296539459,10.18729847,142.39,142.35,0.66155358]
[1768296539666,7.12242939,142.39,142.35,0.66155358]
[1768296539865,3.81979712,142.38,142.33,7.68718382]
[1768296540168,3.26843836,142.37,142.33,0.66155358]
[1768296540464,3.16386908,142.37,142.33,0.66155358]
[1768296540861,3.16386908,142.37,142.33,7.68715725]
[1768296541245,3.16386908,142.37,142.34,0.66155358]
[1768296541656,3.16386908,142.36,142.33,0.66155358]
[1768296541863,10.18837447,142.36,142.33,0.66155358]
[1768296543674,3.16386908,142.35,142.31,10.85214284]
[1768296543875,10.84430251,142.36,142.31,10.85214284]
[1768296544172,10.84430251,142.36,142.32,0.66155358]
[1768296544369,7.68043343,142.36,142.32,0.66155358]
[1768296544672,3.16386908,142.35,142.32,0.66155358]
[1768296544871,10.84430251,142.36,142.32,0.66155358]
[1768296545049,3.16386908,142.33,142.3,0.72035064]
[1768296545252,0.11002773,142.33,142.28,0.72035064]
[1768296545468,3.16386908,142.32,142.28,0.72035064]
[1768296546266,10.19044377,142.32,142.28,0.72035064]
[1768296546778,10.16044377,142.32,142.28,0.72035064]
[1768296546979,10.16044377,142.32,142.28,3.88421972]
[1768296547279,10.16044377,142.32,142.28,0.72035064]
[1768296548573,12.93002773,142.33,142.29,0.72035064]
[1768296548574,7.02608983,142.33,142.29,0.72035064]
[1768296548781,23.00995891,142.33,142.29,0.72035064]
[1768296549478,3.16386908,142.31,142.28,0.72035064]
[1768296549973,3.16386908,142.29,142.27,0.92035064]
[1768296551082,3.16386908,142.29,142.27,1e-08]
[1768296551286,3.16386908,142.28,142.26,0.92035064]
[1768296551488,3.16386908,142.28,142.26,0.2]
[1768296551675,3.16386908,142.28,142.26,0.92035064]
[1768296552283,3.16386908,142.29,142.26,0.92035064]
[1768296552574,3.16386908,142.29,142.26,0.2]
[1768296553585,15.98386908,142.29,142.26,0.92035064]
[1768296553790,3.16386908,142.28,142.26,0.92035064]
[1768296553983,3.16386908,142.27,142.26,0.92035064]
[1768296554184,3.16386908,142.27,142.26,0.2]
[1768296554374,3.16386908,142.27,142.25,0.2]
[1768296554686,3.27461531,142.26,142.21,69.45184388]
[1768296554890,3.16386908,142.25,142.22,0.72035064]
[1768296555090,3.16386908,142.25,142.21,7.92279164]
[1768296555274,3.16386908,142.25,142.22,0.6912984]
[1768296556588,3.16386908,142.25,142.22,7.72253259]
[1768296556783,3.16386908,142.25,142.22,0.6912984]
[1768296558199,23.01341603,142.26,142.22,0.6912984]
[1768296559197,15.98386908,142.26,142.22,7.72260248]
[1768296559691,12.82,142.26,142.23,0.6912984]
[1768296559872,15.98386908,142.26,142.23,0.6912984]
[1768296560696,12.82,142.26,142.23,0.6912984]
[1768296561696,15.98386908,142.27,142.23,0.6912984]
[1768296562278,3.26286908,142.27,142.23,7.72210096]
[1768296562478,0.65592804,142.26,142.23,7.03080256]
[1768296562679,15.98386908,142.27,142.23,7.72210096]
[1768296562985,3.16386908,142.27,142.24,0.6912984]
[1768296563294,15.98386908,142.27,142.24,0.6912984]
[1768296563975,3.16386908,142.26,142.24,0.6912984]
[1768296568403,16.08286908,142.27,142.24,0.6912984]
[1768296569003,3.16386908,142.28,142.25,0.6912984]
[1768296569207,12.82,142.27,142.25,0.6912984]
[1768296569988,12.82,142.27,142.25,7.72104653]
[1768296570508,12.82,142.27,142.25,0.6912984]
[1768296570808,12.82,142.27,142.24,7.72146239]
[1768296571908,3.81979712,142.28,142.24,7.72146239]
[1768296572095,16.63979712,142.28,142.24,7.72146239]
[1768296572409,23.66823158,142.28,142.24,7.72146239]
[1768296573301,3.26843836,142.27,142.23,0.6912984]
[1768296575011,12.82,142.31,142.26,0.69201774]
[1768296575200,3.16386908,142.3,142.26,0.69201774]
[1768296575508,3.16386908,142.31,142.27,0.69201774]
[1768296575807,3.16386908,142.32,142.28,0.69201774]
[1768296577309,3.26286908,142.31,142.27,7.72060353]
[1768296577508,3.16386908,142.29,142.27,7.72060353]
[1768296577897,3.16386908,142.3,142.27,7.72060353]
[1768296578103,3.26286908,142.31,142.28,7.02838168]
[1768296578305,3.16386908,142.31,142.28,7.72039942]
[1768296578506,0.66155358,142.32,142.28,7.72039942]
[1768296578712,3.16386908,142.31,142.28,7.72039942]
[1768296579018,3.16386908,142.31,142.28,0.69201774]
[1768296583718,3.26286908,142.31,142.27,7.72073036]
[1768296583919,0.10456928,142.29,142.25,0.69201774]
[1768296584109,3.16386908,142.28,142.25,0.69201774]
[1768296584308,3.26843836,142.29,142.25,7.72182299]
[1768296584508,10.19179267,142.29,142.26,0.69201774]
[1768296584825,23.67303974,142.3,142.26,3.85588682]
[1768296584994,23.01148616,142.3,142.26,0.69201774]
[1768296585196,7.02761708,142.3,142.26,0.69201774]
[1768296585411,10.29048616,142.3,142.27,0.69201774]
[1768296585619,7.12661708,142.3,142.27,0.69201774]
[1768296585817,10.29048616,142.3,142.27,0.69201774]
[1768296586319,10.19148616,142.3,142.27,0.69201774]
[1768296587622,3.16386908,142.3,142.27,0.69201774]
[1768296588305,23.67250094,142.31,142.27,0.69201774]
[1768296588508,0.66155358,142.31,142.27,10.88475031]
[1768296589322,0.66155358,142.31,142.27,2.71626469]
[1768296589323,7.6885559,142.31,142.27,2.71626469]
[1768296590324,7.6885559,142.31,142.28,0.69201774]
[1768296590521,7.02700232,142.31,142.28,0.69201774]
[1768296591722,21.96986909,142.32,142.28,0.69201774]
[1768296592628,19.94562214,142.32,142.28,0.69201774]
[1768296592821,21.96986909,142.32,142.28,0.69201774]
[1768296593931,9.14986909,142.32,142.28,0.69201774]
[1768296594122,21.96986909,142.32,142.28,0.69201774]
[1768296594320,9.14986909,142.32,142.28,0.69201774]
[1768296594629,21.96986909,142.32,142.28,0.69201774]
[1768296594926,9.14986909,142.32,142.28,0.69201774]
[1768296595330,7.68305598,142.31,142.27,2.71626469]
[1768296595830,7.68305598,142.31,142.28,0.69201774]
[1768296596133,9.70730293,142.31,142.28,0.69201774]
[1768296596630,9.05137489,142.31,142.28,0.69201774]
[1768296598135,7.02712794,142.31,142.28,0.69201774]
[1768296598328,9.15037489,142.31,142.27,0.69201774]
[1768296600341,2.68017499,142.3,142.26,0.69201774]
[1768296600628,2.12881623,142.29,142.26,0.69201774]
[1768296600833,0.66155358,142.3,142.26,2.71626469]
[1768296601015,2.68580053,142.3,142.27,0.69201774]
[1768296601433,7.02712794,142.31,142.27,0.69201774]
[1768296601732,7.02712794,142.31,142.28,0.69201774]
[1768296603116,19.84712794,142.31,142.28,0.69201774]
[1768296603336,21.87137489,142.31,142.28,0.69201774]
[1768296603634,9.05137489,142.31,142.28,0.69201774]
[1768296604434,19.84655448,142.32,142.29,0.69201774]
[1768296605528,2.68017499,142.31,142.27,0.68460372]
[1768296605713,0.10456928,142.3,142.27,0.68460372]
[1768296606035,2.12324695,142.31,142.27,0.68460372]
[1768296606649,9.15059859,142.31,142.27,0.68460372]
[1768296606813,2.72378072,142.27,142.25,61.5]
[1768296607017,2.72378072,142.27,142.23,68.53068678]
[1768296607433,2.02424695,142.27,142.23,68.53068678]
[1768296608319,2.72378072,142.28,142.24,9.05442828]
[1768296608523,14.84424695,142.29,142.25,9.05379906]
[1768296608725,2.72378072,142.3,142.26,0.68460372]
[1768296609048,15.54378072,142.32,142.28,0.68460372]
[1768296609341,2.02424695,142.31,142.28,0.68460372]
[1768296610043,2.72378072,142.31,142.28,0.68460372]
[1768296610942,2.02424695,142.33,142.29,0.68460372]
[1768296611451,2.02424695,142.32,142.29,0.68460372]
[1768296611846,2.72378072,142.33,142.29,0.68460372]
[1768296612050,15.54378072,142.34,142.3,0.68460372]
[1768296612744,13.51953377,142.34,142.3,2.70885067]
[1768296612923,22.5692711,142.34,142.3,0.68460372]
[1768296614933,13.51953377,142.34,142.3,0.68460372]
[1768296615258,22.5692447,142.34,142.3,0.68460372]
[1768296615557,2.02424695,142.36,142.32,0.69940044]
[1768296615558,2.7207134,142.36,142.32,0.69940044]
[1768296615727,15.5407134,142.36,142.32,0.69940044]
[1768296616647,0.69646645,142.35,142.31,2.02424695]
[1768296616944,7.72027248,142.38,142.33,0.69940044]
[1768296617149,2.02424695,142.37,142.33,0.69940044]
[1768296617325,2.7207134,142.37,142.33,0.69940044]
[1768296617749,0.69646645,142.37,142.33,0.69940044]
[1768296617957,2.02424695,142.35,142.33,0.69940044]
[1768296618326,2.02424695,142.35,142.31,0.69940044]
[1768296618327,2.02424695,142.34,142.31,0.69940044]
[1768296618529,0.69646645,142.35,142.31,0.69940044]
[1768296618747,2.7207134,142.35,142.31,0.69940044]
[1768296619245,0.69646645,142.34,142.31,0.69940044]
[1768296619940,2.02424695,142.35,142.32,0.69940044]
[1768296620261,0.69646645,142.34,142.31,9.75050375]
[1768296620557,2.02424695,142.35,142.32,0.69940044]
[1768296620924,9.74551686,142.36,142.32,0.69940044]
[1768296622128,2.02424695,142.35,142.32,0.69940044]
[1768296623232,2.7207134,142.34,142.31,0.69940044]
[1768296623544,2.7207134,142.34,142.3,7.72666936]
[1768296623748,2.7207134,142.34,142.31,0.69940044]
[1768296624934,2.7207134,142.34,142.28,74.32]
[1768296624935,2.7207134,142.32,142.28,0.69940044]
[1768296625126,2.02424695,142.31,142.28,0.69940044]
[1768296625747,2.7207134,142.32,142.28,0.69940044]
[1768296625954,2.7207134,142.32,142.29,0.69940044]
[1768296629460,2.7207134,142.32,142.26,0.69940044]
[1768296629461,2.7207134,142.3,142.26,0.69940044]
[1768296629663,2.02424695,142.29,142.26,0.69940044]
[1768296630054,2.02424695,142.27,142.23,0.69940044]
[1768296630256,2.02424695,142.26,142.23,0.69940044]
[1768296630453,0.69646645,142.28,142.24,0.69940044]
[1768296630667,13.51646645,142.3,142.26,0.69940044]
[1768296630958,15.5407134,142.3,142.26,0.69940044]
[1768296631349,0.69646645,142.29,142.25,9.75349858]
[1768296631739,2.7207134,142.3,142.26,2.72364739]
[1768296631961,9.74816868,142.3,142.26,2.72364739]
[1768296632563,0.69646645,142.31,142.28,0.69940044]
[1768296632771,0.69646645,142.32,142.28,2.6636474]
[1768296632951,2.7207134,142.31,142.27,2.02424695]
[1768296633155,0.69646645,142.3,142.26,26.62692543]
[1768296633351,2.7207134,142.31,142.26,26.62692543]
[1768296634366,0.69646645,142.32,142.28,2.02424695]
[1768296634671,2.7207134,142.32,142.28,0.71928903]
[1768296634868,2.7207134,142.32,142.28,0.65928904]
[1768296635548,2.68310486,142.31,142.26,63.52424695]
[1768296635754,2.68310486,142.31,142.26,68.52932001]
[1768296636073,2.68310486,142.31,142.26,70.55356696]
[1768296636867,2.68310486,142.31,142.27,0.71928903]
[1768296639063,2.68310486,142.31,142.28,0.71928903]
[1768296640172,9.71026617,142.31,142.28,0.71928903]
[1768296640681,9.71026617,142.31,142.28,0.65928904]
[1768296641677,0.65885791,142.31,142.28,0.65928904]
[1768296641982,2.68310486,142.31,142.28,0.65928904]
[1768296643150,2.68310486,142.31,142.28,0.59928905]
[1768296643354,9.71006374,142.31,142.28,0.59928905]
[1768296643776,7.68581679,142.31,142.28,0.59928905]
[1768296644158,2.68310486,142.3,142.26,68.5291875]
[1768296644677,0.65885791,142.29,142.26,68.5291875]
[1768296645066,0.65885791,142.29,142.26,62.21928903]
[1768296645067,2.68310486,142.29,142.26,62.21928903]
[1768296645396,2.02424695,142.28,142.25,0.71928903]
[1768296645891,2.68310486,142.29,142.25,0.71928903]
[1768296646254,2.68310486,142.29,142.26,0.71928903]
[1768296646455,0.65885791,142.29,142.26,0.65928903]
[1768296646674,2.68310486,142.29,142.26,0.65928903]
[1768296648388,0.65885791,142.32,142.28,2.74353598]
[1768296648599,15.50310486,142.32,142.28,0.65928903]
[1768296648766,2.68310486,142.32,142.28,0.65928903]
[1768296649486,10.84816728,142.32,142.28,0.65928903]
[1768296649868,3.1626285,142.33,142.29,3.1626285]
[1768296650074,3.82148641,142.34,142.29,3.1626285]
[1768296650585,0.65885791,142.34,142.3,0.71928903]
[1768296650760,0.65885791,142.36,142.32,3.1626285]
[1768296651162,0.65885791,142.39,142.28,47.26196982]
[1768296651371,3.1626285,142.37,142.32,3.1626285]
[1768296651587,10.84527291,142.38,142.33,3.1626285]
[1768296651774,3.1626285,142.37,142.33,3.1626285]
[1768296652083,3.1626285,142.37,142.33,7.0258972]